[Event "WYCC 2018 O18"]
[Site "Halkidiki"]
[Date "2018.10.28"]
[Round "9"]
[White "Torres Cueto, Jesus Marcial"]
[Black "Banzea, Alexandru-Bogdan"]
[Result "0-1"]
[ECO "E71"]
[WhiteElo "2078"]
[BlackElo "2313"]
[Annotator "NA"]
[PlyCount "70"]
[EventDate "2018.10.20"]
[EventType "swiss"]
[EventCountry "GRE"]
[SourceTitle "playchess.com"]
[Source "ChessBase"]
[SourceQuality "1"]
[TimeControl "40/5400+30:1800+30"]

1. d4 {[%emt 0:00:05]} Nf6 {[%emt 0:00:00]} 2. c4 {[%emt 0:00:06]} g6 {[%emt 0:00:00]} 3. Nc3 {[%emt 0:00:04]} Bg7 {[%emt 0:00:06]} 4. e4 {[%emt 0:00:09]} d6 {[%emt 0:00:06]} 5. h3 {[%emt 0:00:03]} O-O {[%emt 0:00:12]} 6. Be3 {[%emt 0:00:04]} Nbd7 {[%emt 0:00:21]} 7. Nge2 {[%emt 0:01:07]} c5 {[%emt 0:00:36]} 8. g3 {[%emt 0:02:23]} Qa5 {[%emt 0:04:09]} 9. Qd2 {[%emt 0:05:42]} b5 {[%emt 0:05:40]} 10. cxb5 {[%emt 0:07:30]} a6 {[%emt 0:01:33]} 11. Bg2 {[%emt 0:02:09]} axb5 {[%emt 0:02:30]} 12. O-O {[%emt 0:03:28]} b4 {[%emt 0:13:37]} 13. Nd1 {[%emt 0:05:20]} Bb7 $17 {[%emt 0:10:59]} 14. e5 {[%emt 0:03:01]} Ne4 {[%emt 0:05:18]} 15. Qc2 {[%emt 0:00:29]} cxd4 {[%emt 0:02:50]} 16. Nxd4 {[%emt 0:11:40]} Rac8 {[%emt 0:04:32]} 17. Qb1 {[%emt 0:02:51]} Qxe5 {[%emt 0:02:46]} 18. f4 {[%emt 0:03:21]} Qd5 {[%emt 0:07:45]} 19. Nf2 {[%emt 0:00:38]} Ndc5 {[%emt 0:04:00]} 20. Rd1 {[%emt 0:00:54]} f5 {[%emt 0:01:59]} 21. g4 {[%emt 0:06:08]} Qf7 {[%emt 0:01:46]} 22. Nf3 {[%emt 0:06:46]} h6 {[%emt 0:05:18]} 23. Nxe4 Nxe4 24. Qd3 {[%emt 0:02:11]} Bxb2 {[%emt 0:03:42]} 25. Rab1 {[%emt 0:00:10]} Bc3 {[%emt 0:02:38]} 26. a3 {[%emt 0:01:20]} Nc5 {[%emt 0:01:09]} 27. Bxc5 {[%emt 0:00:24]} Be4 {[%emt 0:01:44]} 28. Qe2 {[%emt 0:02:13]} dxc5 {[%emt 0:03:42]} 29. axb4 {[%emt 0:00:44]} Bxb1 {[%emt 0:04:13]} 30. Rxb1 {[%emt 0:01:59]} cxb4 {[%emt 0:00:47]} 31. g5 {[%emt 0:00:57]} h5 {[%emt 0:02:47]} 32. Ne5 {[%emt 0:00:18]} Qe6 {[%emt 0:00:35]} 33. Qb5 {[%emt 0:01:12]} Rfd8 {[%emt 0:00:23]} 34. Nc6 {[%emt 0:00:32]} Rd2 {[%emt 0:01:20]} 35. Nxb4 {[%emt 0:01:50]} Rxg2+ {[%emt 0:01:05]} 0-1

[Event "WYCC 2018 O18"]
[Site "Halkidiki"]
[Date "2018.10.28"]
[Round "9"]
[White "Polyakov, Fedor"]
[Black "Carnicelli, Valerio"]
[Result "0-1"]
[ECO "A57"]
[WhiteElo "2036"]
[BlackElo "2299"]
[Annotator "NA"]
[PlyCount "64"]
[EventDate "2018.10.20"]
[EventType "swiss"]
[EventCountry "GRE"]
[SourceTitle "playchess.com"]
[Source "ChessBase"]
[SourceQuality "1"]
[TimeControl "40/5400+30:1800+30"]

1. d4 {[%emt 0:00:16]} Nf6 {[%emt 0:00:00]} 2. c4 {[%emt 0:00:02]} c5 {[%emt 0:00:00]} 3. d5 {[%emt 0:00:03]} b5 {[%emt 0:00:00]} 4. cxb5 {[%emt 0:00:02]} a6 {[%emt 0:00:00]} 5. b6 {[%emt 0:00:06]} d6 {[%emt 0:00:03]} 6. Nc3 {[%emt 0:00:05]} Nbd7 {[%emt 0:00:05]} 7. e4 {[%emt 0:00:05]} g6 {[%emt 0:00:04]} 8. a4 {[%emt 0:02:07]} Qxb6 {[%emt 0:00:05]} 9. Nf3 {[%emt 0:00:39]} Bg7 {[%emt 0:00:06]} 10. Nd2 {[%emt 0:00:40]} O-O {[%emt 0:01:49]} 11. Nc4 {[%emt 0:02:10]} Qd8 {[%emt 0:01:42]} 12. a5 {[%emt 0:01:04]} Rb8 {[%emt 0:02:23]} 13. f4 {[%emt 0:03:33]} Ne8 {[%emt 0:02:23]} 14. Be2 {[%emt 0:16:11]} Nc7 {[%emt 0:13:43]} 15. Na4 {[%emt 0:08:30]} Nb5 {[%emt 0:02:58]} 16. Nab6 {[%emt 0:03:03]} Nxb6 $15 {[%emt 0:07:51]} 17. Nxb6 {[%emt 0:02:38]} Nd4 {[%emt 0:00:12]} 18. O-O {[%emt 0:06:12]} f5 {[%emt 0:14:05]} 19. exf5 {[%emt 0:06:36]} Nxf5 {[%emt 0:02:51]} 20. Qd3 {[%emt 0:01:35]} Bb7 {[%emt 0:06:42]} 21. Bg4 {[%emt 0:02:27]} Bd4+ {[%emt 0:08:50]} 22. Kh1 {[%emt 0:00:47]} e6 {[%emt 0:00:48]} 23. dxe6 {[%emt 0:05:26]} Bc6 {[%emt 0:09:54]} 24. Qb3 {[%emt 0:20:10]} d5 {[%emt 0:11:33]} 25. Bxf5 {[%emt 0:02:12]} Rxf5 {[%emt 0:00:44]} 26. Re1 {[%emt 0:07:14]} Qh4 {[%emt 0:01:36]} 27. Be3 {[%emt 0:00:35]} Rh5 {[%emt 0:00:39]} 28. h3 {[%emt 0:00:16]} Qg3 {[%emt 0:04:01]} 29. Rad1 {[%emt 0:09:13]} c4 {[%emt 0:01:57]} 30. Qa3 {[%emt 0:00:15]} Bxe3 {[%emt 0:02:21]} 31. Rxe3 {[%emt 0:00:44]} Rxh3+ {[%emt 0:00:16]} 32. Kg1 {[%emt 0:00:31]} Qxe3+ {[%emt 0:00:06]} 0-1

[Event "WYCC 2018 O18"]
[Site "Halkidiki"]
[Date "2018.10.28"]
[Round "9"]
[White "Zhu, Brandon"]
[Black "Tifferet, Shaked"]
[Result "1/2-1/2"]
[ECO "C83"]
[WhiteElo "1914"]
[BlackElo "2254"]
[Annotator "NA"]
[PlyCount "88"]
[EventDate "2018.10.20"]
[EventType "swiss"]
[EventCountry "GRE"]
[SourceTitle "playchess.com"]
[Source "ChessBase"]
[SourceQuality "1"]
[TimeControl "40/5400+30:1800+30"]

1. e4 {[%emt 0:00:00]} e5 {[%emt 0:00:00]} 2. Nf3 {[%emt 0:00:00]} Nc6 {[%emt 0:00:00]} 3. Bb5 {[%emt 0:00:00]} a6 {[%emt 0:00:00]} 4. Ba4 {[%emt 0:00:03]} Nf6 {[%emt 0:00:05]} 5. O-O {[%emt 0:00:08]} Nxe4 {[%emt 0:00:25]} 6. d4 {[%emt 0:00:58]} b5 {[%emt 0:00:12]} 7. Bb3 {[%emt 0:00:17]} d5 {[%emt 0:00:06]} 8. dxe5 {[%emt 0:00:31]} Be6 {[%emt 0:00:05]} 9. c3 {[%emt 0:01:21]} Be7 {[%emt 0:00:15]} 10. Nbd2 {[%emt 0:01:31]} O-O {[%emt 0:00:08]} 11. Bc2 {[%emt 0:02:46]} f5 {[%emt 0:03:11]} 12. exf6 {[%emt 0:04:27]} Nxf6 {[%emt 0:00:06]} 13. Nb3 {[%emt 0:06:11]} Bg4 {[%emt 0:02:44]} 14. Qd3 {[%emt 0:02:21]} Qd7 {[%emt 0:05:01]} 15. Nbd4 {[%emt 0:02:03]} Nxd4 {[%emt 0:01:16]} 16. cxd4 {[%emt 0:01:47]} Bxf3 {[%emt 0:00:40]} 17. Qxf3 {[%emt 0:01:49]} Bd6 {[%emt 0:00:46]} 18. g3 {[%emt 0:18:30]} g6 {[%emt 0:10:49]} 19. Qg2 {[%emt 0:10:31]} Rae8 {[%emt 0:09:08]} 20. Bh6 {[%emt 0:01:38]} Rf7 {[%emt 0:00:36]} 21. Rae1 {[%emt 0:02:40]} c6 {[%emt 0:16:10]} 22. Rxe8+ {[%emt 0:02:30]} Qxe8 {[%emt 0:05:55]} 23. f3 {[%emt 0:08:19]} Bf8 {[%emt 0:06:48]} 24. Bxf8 {[%emt 0:05:29]} Qxf8 {[%emt 0:00:17]} 25. Re1 {[%emt 0:01:41]} Qb4 {[%emt 0:01:05]} 26. Qf2 {[%emt 0:06:12]} Qxb2 {[%emt 0:07:25]} 27. Re6 {[%emt 0:02:17]} Qc3 {[%emt 0:00:22]} 28. Kg2 {[%emt 0:02:54]} Kg7 {[%emt 0:06:01]} 29. h4 {[%emt 0:01:19]} a5 {[%emt 0:03:20]} 30. Kh3 {[%emt 0:01:59]} a4 {[%emt 0:04:04]} 31. Qe2 {[%emt 0:03:08]} Qa1 {[%emt 0:03:20]} 32. Rxf6 {[%emt 0:00:53]} Rxf6 {[%emt 0:07:48]} 33. Qe7+ {[%emt 0:00:12]} Rf7 {[%emt 0:00:26]} 34. Qe5+ {[%emt 0:00:11]} Kf8 {[%emt 0:02:35]} 35. Qb8+ {[%emt 0:00:34]} Ke7 {[%emt 0:01:10]} 36. Qc7+ {[%emt 0:00:25]} Kf8 {[%emt 0:01:10]} 37. Qb8+ {[%emt 0:00:19]} Kg7 {[%emt 0:00:07]} 38. Qe5+ {[%emt 0:00:13]} Kg8 {[%emt 0:00:19]} 39. Qe8+ {[%emt 0:00:40]} Rf8 {[%emt 0:00:48]} 40. Qe6+ {[%emt 0:00:00]} Kg7 {[%emt 0:00:00]} 41. Qe7+ {[%emt 0:01:08]} Rf7 {[%emt 0:07:01]} 42. Qe5+ {[%emt 0:00:12]} Kf8 {[%emt 0:01:09]} 43. Qb8+ {[%emt 0:00:16]} Ke7 {[%emt 0:00:16]} 44. Qc7+ {[%emt 0:00:15]} Kf8 {[%emt 0:01:32]} 1/2-1/2

[Event "WYCC 2018 O18"]
[Site "Halkidiki"]
[Date "2018.10.29"]
[Round "10"]
[White "Moroni, Luca Jr"]
[Black "Pantzar, Milton"]
[Result "1-0"]
[ECO "A45"]
[WhiteElo "2554"]
[BlackElo "2326"]
[Annotator "ChessBase"]
[PlyCount "103"]
[EventDate "2018.10.20"]
[EventType "swiss"]
[EventCountry "GRE"]
[SourceTitle "playchess.com"]
[Source "ChessBase"]
[SourceQuality "1"]
[TimeControl "40/5400+30:1800+30"]

1. d4 {[%emt 0:00:00]} Nf6 {[%emt 0:00:00]} 2. Bf4 {[%emt 0:00:00]} d5 {[%emt 0:00:43]} 3. e3 {[%emt 0:00:00]} e6 {[%emt 0:02:53]} 4. Nf3 {[%emt 0:00:00]} c5 {[%emt 0:01:21]} 5. Nbd2 {[%emt 0:00:00]} Nc6 {[%emt 0:01:47]} 6. c3 {[%emt 0:00:05]} cxd4 {[%emt 0:00:48]} 7. exd4 {[%emt 0:00:06]} Nh5 {[%emt 0:00:12]} 8. Be3 {[%emt 0:00:05]} Bd6 {[%emt 0:00:54]} 9. Ne5 {[%emt 0:00:04]} g6 {[%emt 0:03:35]} 10. g4 {[%emt 0:00:05]} Ng7 {[%emt 0:04:41]} 11. h4 {[%emt 0:00:04]} f6 {[%emt 0:18:28]} 12. Nxc6 {[%emt 0:13:19]} bxc6 {[%emt 0:00:22]} 13. h5 {[%emt 0:03:53]} gxh5 {[%emt 0:05:43]} 14. Bd3 {[%emt 0:05:28]} Qe7 {[%emt 0:07:17]} 15. gxh5 {[%emt 0:07:35]} e5 {[%emt 0:04:49]} 16. Qa4 {[%emt 0:10:53]} Bd7 {[%emt 0:02:05]} 17. O-O-O {[%emt 0:02:48]} e4 {[%emt 0:03:58]} 18. Be2 {[%emt 0:02:41]} Ne6 {[%emt 0:03:21]} 19. Bg4 {[%emt 0:07:16]} Nf4 {[%emt 0:08:51]} 20. Bxf4 {[%emt 0:07:10]} Bxf4 {[%emt 0:00:11]} 21. Bxd7+ {[%emt 0:01:03]} Qxd7 {[%emt 0:00:43]} 22. Kb1 {[%emt 0:01:23]} Bxd2 {[%emt 0:05:44]} 23. Rxd2 {[%emt 0:00:03]} Kf7 {[%emt 0:00:40]} 24. Rc2 {[%emt 0:04:16]} Rab8 {[%emt 0:04:29]} 25. c4 {[%emt 0:03:06]} Rb7 {[%emt 0:01:17]} 26. Rhc1 {[%emt 0:01:24]} Rhb8 {[%emt 0:04:03]} 27. cxd5 {[%emt 0:02:00]} cxd5 {[%emt 0:03:11]} 28. Qa5 {[%emt 0:00:15]} Qb5 {[%emt 0:03:23]} 29. Qd2 {[%emt 0:04:18]} Qd3 {[%emt 0:00:52]} 30. Qxd3 {[%emt 0:00:12]} exd3 {[%emt 0:00:02]} 31. Rc7+ {[%emt 0:02:21]} Ke6 {[%emt 0:02:45]} 32. Rxb7 {[%emt 0:00:25]} Rxb7 {[%emt 0:00:02]} 33. Rd1 {[%emt 0:00:08]} Kf5 {[%emt 0:01:26]} 34. Rxd3 {[%emt 0:00:24]} Ke4 {[%emt 0:01:01]} 35. Rg3 {[%emt 0:00:10]} Kxd4 {[%emt 0:00:48]} 36. h6 {[%emt 0:02:00]} f5 {[%emt 0:04:27]} 37. Rg7 {[%emt 0:01:05]} Rb6 {[%emt 0:00:01]} 38. Rxh7 {[%emt 0:00:07]} Kd3 {[%emt 0:00:52]} 39. a4 {[%emt 0:02:18]} a6 {[%emt 0:00:57]} 40. a5 {[%emt 0:00:00]} Rd6 {[%emt 0:00:00]} 41. Rh8 {[%emt 0:08:06]} d4 {[%emt 0:05:49]} 42. h7 {[%emt 0:04:23]} Rd7 {[%emt 0:00:39]} 43. Ra8 {[%emt 0:05:47]} Rxh7 {[%emt 0:00:19]} 44. Rxa6 {[%emt 0:00:11]} Kc4 {[%emt 0:12:49]} 45. Rc6+ {[%emt 0:11:26]} Kb5 {[%emt 0:02:50]} 46. Rd6 {[%emt 0:00:38]} Kxa5 {[%emt 0:02:45]} 47. Rxd4 {[%emt 0:00:06]} Kb6 {[%emt 0:04:41]} 48. Rd5 {[%emt 0:01:19]} f4 {[%emt 0:02:48]} 49. Rd4 {[%emt 0:02:37]} Rf7 {[%emt 0:00:51]} 50. Kc2 {[%emt 0:00:14]} Kc5 {[%emt 0:00:05]} 51. Kd3 {[%emt 0:00:29]} f3 {[%emt 0:00:51]} 52. b4+ {[%emt 0:00:52] Kd5 Ke4+} 1-0

[Event "WYCC 2018 O18"]
[Site "Halkidiki"]
[Date "2018.10.29"]
[Round "10"]
[White "Gholami, Aryan"]
[Black "Hakobyan, Aram"]
[Result "1/2-1/2"]
[ECO "A05"]
[WhiteElo "2493"]
[BlackElo "2565"]
[Annotator "ChessBase"]
[PlyCount "93"]
[EventDate "2018.10.20"]
[EventType "swiss"]
[EventCountry "GRE"]
[SourceTitle "playchess.com"]
[Source "ChessBase"]
[SourceQuality "1"]
[TimeControl "40/5400+30:1800+30"]

1. Nf3 {[%emt 0:00:00]} Nf6 {[%emt 0:01:07]} 2. g3 {[%emt 0:00:00]} g6 {[%emt 0:00:25]} 3. b3 {[%emt 0:00:00]} Bg7 {[%emt 0:00:13]} 4. Bb2 {[%emt 0:00:02]} c5 {[%emt 0:00:16]} 5. c4 {[%emt 0:00:08]} b6 {[%emt 0:06:30]} 6. Bg2 {[%emt 0:00:27]} Bb7 {[%emt 0:00:02]} 7. O-O {[%emt 0:00:20]} O-O {[%emt 0:00:31]} 8. d4 {[%emt 0:00:24]} cxd4 {[%emt 0:00:57]} 9. Qxd4 {[%emt 0:00:17]} d6 {[%emt 0:00:11]} 10. Rd1 {[%emt 0:00:38]} Nbd7 {[%emt 0:00:03]} 11. Nc3 {[%emt 0:02:56]} Rc8 {[%emt 0:02:34]} 12. Rac1 {[%emt 0:03:04]} Rc5 {[%emt 0:04:05]} 13. Qd2 {[%emt 0:14:45]} Qa8 {[%emt 0:02:06]} 14. Ne1 {[%emt 0:02:35]} Bxg2 {[%emt 0:16:32]} 15. Nxg2 {[%emt 0:00:36]} Rfc8 {[%emt 0:04:36]} 16. Ne3 {[%emt 0:02:20]} Bh6 {[%emt 0:14:44]} 17. f4 {[%emt 0:06:12]} e6 {[%emt 0:10:30]} 18. Ba3 {[%emt 0:17:06]} Rh5 {[%emt 0:01:04]} 19. Bxd6 {[%emt 0:00:25]} Nc5 {[%emt 0:00:59]} 20. Bxc5 {[%emt 0:15:57]} Rhxc5 {[%emt 0:00:36]} 21. Nf1 {[%emt 0:01:00]} a6 {[%emt 0:15:19]} 22. a4 {[%emt 0:00:43]} R5c7 {[%emt 0:05:31]} 23. e3 {[%emt 0:01:26]} Nd7 {[%emt 0:01:24]} 24. Qg2 {[%emt 0:02:01]} Qxg2+ {[%emt 0:02:23]} 25. Kxg2 {[%emt 0:00:03]} Nc5 {[%emt 0:00:06]} 26. Nd2 {[%emt 0:05:58]} f5 {[%emt 0:01:45]} 27. b4 {[%emt 0:05:59]} Nd3 {[%emt 0:00:45]} 28. Rb1 {[%emt 0:00:06]} Bg7 {[%emt 0:02:03]} 29. Ne2 {[%emt 0:04:19]} Nb2 {[%emt 0:00:11]} 30. Rdc1 {[%emt 0:01:24]} Nxc4 {[%emt 0:00:05]} 31. Nxc4 {[%emt 0:00:21]} Rxc4 {[%emt 0:00:04]} 32. Rxc4 {[%emt 0:07:59]} Rxc4 {[%emt 0:00:02]} 33. Rc1 {[%emt 0:00:08]} Rxb4 {[%emt 0:02:01]} 34. Rc8+ {[%emt 0:00:05]} Kf7 {[%emt 0:00:23]} 35. Rc7+ {[%emt 0:00:11]} Kf8 {[%emt 0:02:18]} 36. Rc8+ {[%emt 0:00:09]} Ke7 {[%emt 0:00:04]} 37. Rc7+ {[%emt 0:00:04]} Kf6 {[%emt 0:00:45]} 38. Nd4 {[%emt 0:00:38]} Rb2+ {[%emt 0:02:43]} 39. Kf1 {[%emt 0:02:44]} Bf8 {[%emt 0:00:55]} 40. Rxh7 {[%emt 0:00:00]} e5 {[%emt 0:00:00]} 41. Nf3 {[%emt 0:03:47]} exf4 {[%emt 0:04:08]} 42. exf4 {[%emt 0:00:07]} Bg7 {[%emt 0:00:30]} 43. Ng5 {[%emt 0:03:47]} Rb4 {[%emt 0:08:36]} 44. Ne6 {[%emt 0:00:08]} Rxa4 {[%emt 0:02:38]} 45. Nxg7 {[%emt 0:02:30]} Re4 {[%emt 0:00:45]} 46. Nh5+ gxh5 {[%emt 0:00:06]} 47. Rh6+ {[%emt 0:01:09] Ke5} 1/2-1/2

[Event "WYCC 2018 O18"]
[Site "Halkidiki"]
[Date "2018.10.29"]
[Round "10"]
[White "Fawzy, Adham"]
[Black "Ozates, Tuna"]
[Result "1-0"]
[ECO "C55"]
[WhiteElo "2439"]
[BlackElo "2225"]
[Annotator "NA"]
[PlyCount "97"]
[EventDate "2018.10.20"]
[EventType "swiss"]
[EventCountry "GRE"]
[SourceTitle "playchess.com"]
[Source "ChessBase"]
[SourceQuality "1"]
[TimeControl "40/5400+30:1800+30"]

1. e4 {[%emt 0:00:00]} e5 {[%emt 0:00:00]} 2. Nf3 {[%emt 0:00:00]} Nc6 {[%emt 0:00:00]} 3. d4 {[%emt 0:00:00]} exd4 {[%emt 0:00:00]} 4. Bc4 {[%emt 0:00:06]} Nf6 {[%emt 0:00:00]} 5. e5 {[%emt 0:00:18]} d5 {[%emt 0:00:00]} 6. Bb5 {[%emt 0:00:05]} Ne4 {[%emt 0:00:05]} 7. Nxd4 {[%emt 0:00:07]} Bd7 {[%emt 0:00:32]} 8. Bxc6 {[%emt 0:00:09]} bxc6 {[%emt 0:00:02]} 9. O-O {[%emt 0:00:07]} Bc5 {[%emt 0:00:16]} 10. f3 {[%emt 0:01:57]} Ng5 {[%emt 0:00:47]} 11. Be3 {[%emt 0:02:11]} Bb6 {[%emt 0:03:55]} 12. c3 {[%emt 0:10:55] C56: Two Knights: 4 d4 exd4 5 0-0 Nxe4} (12. f4 Ne6 13. c3 g6 14. Nd2 Qe7 15. Qf3 Rb8 16. b3 c5 17. Ne2 d4 18. Bf2 O-O 19. Ne4 Bc6 {1-0 (46) Perez Candelario,M (2590)-Eljanov,P (2703) Batumi 2018}) 12... c5 {[%emt 0:05:38]} 13. Ne2 $146 {[%emt 0:01:18]} ({Predecessor:} 13. Nb3 c4 14. Nc5 Bc6 15. b4 cxb3 16. axb3 Ne6 17. b4 Bxc5 18. bxc5 O-O 19. f4 f5 {0-1 (42) Volovikov,A (2315)-Petrosyan,T (2255) Lvov 2011}) 13... Bc6 {[%emt 0:00:57]} 14. Nd2 {[%emt 0:11:56]} d4 {[%emt 0:05:36]} (14... O-O $15) 15. Bf2 {[%emt 0:00:15]} Qd5 {[%emt 0:02:06]} 16. Nf4 {[%emt 0:03:32]} Qd7 {[%emt 0:02:23]} 17. c4 {[%emt 0:09:02]} O-O {[%emt 0:05:54]} 18. a4 {[%emt 0:00:57]} a5 {[%emt 0:03:13]} 19. Re1 {[%emt 0:01:35]} Rae8 {[%emt 0:00:51]} 20. Nd5 {[%emt 0:15:18]} (20. Bh4 $11 {remains equal.}) 20... Ne6 {[%emt 0:03:47]} 21. Qb3 {[%emt 0:04:23]} Ba7 {[%emt 0:04:11]} 22. Ne4 {[%emt 0:03:01]} Bxd5 {[%emt 0:07:28]} 23. cxd5 {[%emt 0:01:01]} Nf4 {[%emt 0:00:04]} 24. d6 {[%emt 0:02:41]} Rxe5 {[%emt 0:02:09]} 25. Bg3 {[%emt 0:02:53]} Rf5 {[%emt 0:00:44]} 26. Qb7 {[%emt 0:02:56]} Bb6 {[%emt 0:00:45]} 27. Bxf4 {[%emt 0:00:56]} Rxf4 {[%emt 0:00:02]} 28. dxc7 {[%emt 0:00:48]} Bxc7 {[%emt 0:04:43]} 29. Nxc5 {[%emt 0:00:43]} Qd6 {[%emt 0:00:07]} 30. Nd3 {[%emt 0:01:01]} Rf6 {[%emt 0:00:40]} 31. f4 {[%emt 0:00:58]} h6 {[%emt 0:00:45]} 32. Rac1 {[%emt 0:02:33]} Bd8 $11 {[%emt 0:06:24]} 33. Re5 {[%emt 0:05:33]} Re6 {[%emt 0:08:12]} 34. Rd5 {[%emt 0:03:58]} Qb6 35. Qxb6 {[%emt 0:00:56]} Bxb6 {[%emt 0:02:43]} 36. Kf1 {[%emt 0:00:35]} Re3 {[%emt 0:00:43]} 37. Ne5 {[%emt 0:00:32]} Re8 {[%emt 0:12:45]} 38. Rc6 {[%emt 0:06:04]} f6 {[%emt 0:06:15]} 39. Nf3 {[%emt 0:03:10]} R3e6 {[%emt 0:03:26]} 40. Rxe6 {[%emt 0:00:00]} Rxe6 {[%emt 0:00:00]} 41. Nd2 {[%emt 0:03:00]} Rc6 {[%emt 0:12:28]} 42. Ke2 {[%emt 0:01:42]} Rc1 {[%emt 0:02:09]} 43. Kd3 {[%emt 0:01:20]} Ra1 {[%emt 0:02:38]} 44. Nc4 {[%emt 0:03:21]} Bc7 {[%emt 0:00:47]} 45. g3 {[%emt 0:00:14]} g5 {[%emt 0:01:02]} 46. Rd7 {[%emt 0:02:09]} gxf4 {[%emt 0:04:02]} 47. Rxc7 {[%emt 0:00:33]} f3 {[%emt 0:00:04]} 48. Nd2 {[%emt 0:00:13]} Re1 {[%emt 0:00:05]} 49. Rc5 {[%emt 0:00:42]} 1-0

[Event "WYCC 2018 O18"]
[Site "Halkidiki"]
[Date "2018.10.29"]
[Round "10"]
[White "Bronstein, Or"]
[Black "Tsomaia, Nikoloz"]
[Result "0-1"]
[ECO "A30"]
[WhiteElo "2385"]
[BlackElo "2201"]
[Annotator "NA"]
[PlyCount "118"]
[EventDate "2018.10.20"]
[EventType "swiss"]
[EventCountry "GRE"]
[SourceTitle "playchess.com"]
[Source "ChessBase"]
[SourceQuality "1"]
[TimeControl "40/5400+30:1800+30"]

1. Nf3 {[%emt 0:00:00]} Nf6 {[%emt 0:00:00]} 2. c4 {[%emt 0:00:00]} c5 {[%emt 0:00:00]} 3. Nc3 {[%emt 0:00:00]} e6 {[%emt 0:00:20]} 4. g3 {[%emt 0:00:16]} b6 {[%emt 0:00:09]} 5. Bg2 {[%emt 0:00:15]} Bb7 {[%emt 0:00:04]} 6. O-O {[%emt 0:00:08]} Be7 {[%emt 0:00:02]} 7. d4 {[%emt 0:00:27]} cxd4 {[%emt 0:00:09]} 8. Qxd4 {[%emt 0:00:02]} d6 {[%emt 0:00:05]} 9. b3 {[%emt 0:00:43]} O-O {[%emt 0:13:38]} 10. Bb2 {[%emt 0:00:05]} a6 {[%emt 0:02:55]} 11. Rfd1 {[%emt 0:04:55]} Nbd7 {[%emt 0:03:38]} 12. e4 {[%emt 0:03:19]} Qc8 {[%emt 0:03:09]} 13. Qe3 {[%emt 0:01:36]} Re8 {[%emt 0:01:04]} 14. Rac1 {[%emt 0:00:13]} Qc7 {[%emt 0:00:58]} 15. Nd4 {[%emt 0:02:09]} Rac8 {[%emt 0:00:40]} 16. Re1 {[%emt 0:10:36]} Qb8 {[%emt 0:00:18]} 17. h3 {[%emt 0:03:40]} Bf8 {[%emt 0:00:16] LiveBook: 7 Games} 18. Rcd1 {[%emt 0:13:38]} g6 {[%emt 0:00:47]} 19. Qd2 {[%emt 0:03:48]} Red8 {[%emt 0:00:23]} 20. Qe2 {[%emt 0:03:39]} Bg7 {[%emt 0:00:48]} 21. Nc2 {[%emt 0:18:47]} Nc5 {[%emt 0:05:23]} 22. b4 {[%emt 0:00:46]} Ncd7 {[%emt 0:00:08]} 23. Ne3 {[%emt 0:00:20]} Qa8 {[%emt 0:04:18]} 24. a3 {[%emt 0:06:46]} Bf8 {[%emt 0:03:29]} 25. Qd3 {[%emt 0:04:39]} Ne5 {[%emt 0:02:05]} 26. Qd4 {[%emt 0:00:12]} Bg7 {[%emt 0:02:21]} 27. f4 {[%emt 0:02:08]} Ned7 {[%emt 0:20:02]} 28. Qd2 {[%emt 0:00:09]} e5 {[%emt 0:14:39]} 29. Ncd5 {[%emt 0:07:23]} Bxd5 {[%emt 0:00:04]} 30. cxd5 {[%emt 0:00:25]} Nh5 {[%emt 0:01:14]} 31. Nf1 {[%emt 0:03:01]} Bh6 {[%emt 0:06:58]} 32. Bf3 {[%emt 0:00:22]} Nhf6 {[%emt 0:00:07]} 33. Qh2 {[%emt 0:06:10]} b5 {[%emt 0:00:51]} 34. Ne3 {[%emt 0:00:37]} Qa7 {[%emt 0:00:01]} 35. Kh1 {[%emt 0:00:08]} Rc7 {[%emt 0:00:21]} 36. Ng4 {[%emt 0:00:37]} Bg7 {[%emt 0:01:29]} 37. Ne3 {[%emt 0:01:51]} h5 {[%emt 0:01:01]} 38. Rc1 {[%emt 0:04:09]} Rxc1 {[%emt 0:00:05]} 39. Bxc1 {[%emt 0:00:00]} Rc8 {[%emt 0:00:15]} 40. Bb2 {[%emt 0:00:00]} Bh6 {[%emt 0:00:00]} 41. h4 {[%emt 0:12:11]} Re8 {[%emt 0:02:38]} 42. Nc2 {[%emt 0:00:49]} Nb6 {[%emt 0:04:10]} 43. fxe5 {[%emt 0:06:38]} dxe5 {[%emt 0:00:01]} 44. Na1 {[%emt 0:00:25]} Nc4 {[%emt 0:06:09]} 45. Nb3 {[%emt 0:00:08]} Be3 {[%emt 0:00:56]} 46. Rd1 {[%emt 0:02:40]} Qd7 {[%emt 0:01:50]} 47. Nc5 {[%emt 0:02:31]} Qc8 {[%emt 0:00:29]} 48. Nd3 {[%emt 0:00:49]} Nxe4 {[%emt 0:01:57]} 49. Re1 {[%emt 0:03:54]} Qf5 {[%emt 0:01:08]} 50. Qg2 {[%emt 0:01:04]} Ned2 {[%emt 0:02:18]} 51. Be2 {[%emt 0:02:00]} e4 {[%emt 0:01:37]} 52. g4 {[%emt 0:00:01]} Qd7 {[%emt 0:01:47]} 53. gxh5 {[%emt 0:00:56]} exd3 {[%emt 0:00:10]} 54. hxg6 {[%emt 0:00:07]} f6 {[%emt 0:00:37]} 55. Bg4 {[%emt 0:00:25]} f5 {[%emt 0:01:21]} 56. Bc3 {[%emt 0:01:32]} fxg4 {[%emt 0:00:40]} 57. h5 {[%emt 0:00:11]} Ne4 {[%emt 0:00:24]} 58. h6 {[%emt 0:01:43]} Nxc3 {[%emt 0:00:19]} 59. d6 {[%emt 0:00:31]} Qxd6 {[%emt 0:00:57]} 0-1